bitfinex/quotes_BTCUSD_20230904
["timestamp","ask_amount","ask_price","bid_price","bid_amount"]
[1693807523497,0.13617143,25945.0,25944.0,0.005]
[1693807547082,0.04463304,25945.0,25944.0,0.005]
[1693807547319,0.04463304,25945.0,25944.0,0.47488678]
[1693807547524,0.04463304,25945.0,25944.0,0.68496555]
[1693807547860,0.0141,25945.0,25944.0,0.68496555]
[1693807548062,0.0141,25945.0,25944.0,0.66815962]
[1693807548261,0.04439852,25945.0,25944.0,0.97319962]
[1693807548472,0.04439852,25945.0,25944.0,1.11235889]
[1693807548679,0.0141,25945.0,25944.0,1.11091889]
[1693807548887,0.0141,25945.0,25944.0,1.10971889]
[1693807549175,0.0141,25945.0,25944.0,1.10905889]
[1693807549381,0.0141,25945.0,25944.0,1.10705889]
[1693807549583,0.0141,25945.0,25944.0,1.09853889]
[1693807549733,0.0151,25945.0,25944.0,1.11261889]
[1693807549943,0.0151,25945.0,25944.0,1.28706226]
[1693807550145,0.0151,25945.0,25944.0,1.04536299]
[1693807550351,0.0151,25945.0,25944.0,0.65827621]
[1693807550548,0.0151,25945.0,25944.0,0.49506337]
[1693807550707,0.04539733,25945.0,25944.0,0.49506337]
[1693807550913,0.04539733,25945.0,25944.0,0.48306337]
[1693807551361,0.04539733,25945.0,25944.0,0.49506337]
[1693807557569,0.04539733,25945.0,25944.0,0.58747621]
[1693807560328,0.04539733,25945.0,25944.0,1.05736299]
[1693807561371,0.0151,25945.0,25944.0,1.05736299]
[1693807561781,0.0454198,25945.0,25944.0,1.05736299]
[1693807562187,0.0151,25945.0,25944.0,1.05736299]
[1693807564192,0.0151,25945.0,25944.0,1.22099774]
[1693807564595,0.0151,25945.0,25944.0,1.1285849]
[1693807567083,0.0151,25945.0,25944.0,1.12886655]
[1693807567535,0.0151,25945.0,25944.0,1.02534318]
[1693807567734,0.0151,25945.0,25944.0,1.20176974]
[1693807567928,0.0151,25945.0,25944.0,1.19810974]
[1693807568132,0.0151,25945.0,25944.0,1.12634974]
[1693807571333,0.0151,25945.0,25944.0,1.15699944]
[1693807571743,0.0151,25945.0,25944.0,1.22443944]
[1693807571972,0.0151,25945.0,25944.0,1.22485944]
[1693807572170,0.0151,25945.0,25944.0,1.22575944]
[1693807572370,0.0151,25945.0,25944.0,1.22617944]
[1693807572630,0.0151,25945.0,25944.0,1.06127288]
[1693807572823,0.0151,25945.0,25944.0,1.06499288]
[1693807573026,0.0151,25945.0,25944.0,1.06757288]
[1693807573261,0.0151,25945.0,25944.0,1.27130947]
[1693807573467,0.0151,25945.0,25944.0,1.27238947]
[1693807573671,0.0151,25945.0,25944.0,1.27088947]
[1693807573842,0.0151,25945.0,25944.0,1.27412947]
[1693807574069,0.0151,25945.0,25944.0,1.27100947]
[1693807574266,0.0151,25945.0,25944.0,1.27352947]
[1693807574471,0.0151,25945.0,25944.0,1.27328947]
[1693807574677,0.0151,25945.0,25944.0,1.26902947]
[1693807574998,0.0151,25945.0,25944.0,1.27076947]
[1693807575176,0.0151,25945.0,25944.0,1.27052947]
[1693807575381,0.0151,25945.0,25944.0,1.27220947]
[1693807575591,0.0151,25945.0,25944.0,1.27394947]
[1693807575961,0.0151,25945.0,25944.0,1.45856644]
[1693807576171,0.0151,25945.0,25944.0,1.24492985]
[1693807576364,0.0151,25945.0,25944.0,1.46400892]
[1693807576699,0.0151,25945.0,25944.0,1.46340892]
[1693807576898,0.0151,25945.0,25944.0,1.24300985]
[1693807577072,0.0151,25945.0,25944.0,1.44403846]
[1693807577272,0.0151,25945.0,25944.0,1.44517846]
[1693807577483,0.0151,25945.0,25944.0,1.44373846]
[1693807577685,0.0151,25945.0,25944.0,1.24234985]
[1693807577889,0.0151,25945.0,25944.0,1.24300985]
[1693807578065,0.0151,25945.0,25944.0,1.24534985]
[1693807578241,0.0151,25945.0,25944.0,1.24420985]
[1693807578560,0.0151,25945.0,25944.0,1.24354985]
[1693807578776,0.0151,25945.0,25944.0,1.24324985]
[1693807578996,0.001,25945.0,25944.0,1.25848985]
[1693807579319,0.0151,25945.0,25944.0,1.25890985]
[1693807579557,0.0151,25945.0,25944.0,1.25638985]
[1693807579732,0.0151,25945.0,25944.0,1.25644985]
[1693807579912,0.0151,25945.0,25944.0,1.25800985]
[1693807580123,0.0151,25945.0,25944.0,1.25764985]
[1693807580326,0.0151,25945.0,25944.0,1.25866985]
[1693807580520,0.0151,25945.0,25944.0,1.25878985]
[1693807580892,0.0151,25945.0,25944.0,1.25836985]
[1693807581008,0.0151,25945.0,25944.0,1.25824985]
[1693807581209,0.0151,25945.0,25944.0,1.25800985]
[1693807581459,0.0151,25945.0,25944.0,1.25812985]
[1693807581630,0.0151,25945.0,25944.0,1.25794985]
[1693807581999,0.0151,25945.0,25944.0,1.24924985]
[1693807582151,0.0151,25945.0,25944.0,1.24474985]
[1693807582334,0.0151,25945.0,25944.0,1.24454969]
[1693807582534,0.0151,25945.0,25944.0,1.2441297]
[1693807582766,0.0151,25945.0,25944.0,1.2435897]
[1693807582968,0.0151,25945.0,25944.0,1.2469497]
[1693807583170,0.0151,25945.0,25944.0,1.10838713]
[1693807583351,0.0151,25945.0,25944.0,1.10784713]
[1693807583559,0.0151,25945.0,25944.0,1.10808713]
[1693807583758,0.0151,25945.0,25944.0,1.10502713]
[1693807583963,0.0151,25945.0,25944.0,1.10484713]
[1693807584165,0.0151,25945.0,25944.0,1.10406713]
[1693807584374,0.0151,25945.0,25944.0,1.30812687]
[1693807584621,0.0151,25945.0,25944.0,1.23708687]
[1693807586313,0.0151,25945.0,25944.0,1.37572466]
[1693807586514,0.0151,25945.0,25944.0,1.23708687]
[1693807587257,0.0151,25945.0,25944.0,1.03266713]
[1693807587465,0.0151,25945.0,25944.0,1.20974816]
[1693807587872,0.0151,25945.0,25944.0,1.10340713]
[1693807588071,0.0151,25945.0,25944.0,1.10160713]
[1693807588412,0.0151,25945.0,25944.0,1.28264314]
[1693807588621,0.0151,25945.0,25944.0,1.28009714]
[1693807588822,0.0151,25945.0,25944.0,1.21181714]
[1693807591261,0.0151,25945.0,25944.0,1.44289522]
[1693807592078,0.0151,25945.0,25944.0,1.26172035]
[1693807592458,0.0151,25945.0,25944.0,1.45117227]
[1693807593653,0.0151,25945.0,25944.0,1.26172035]
[1693807594047,0.0151,25945.0,25944.0,1.32712035]
[1693807594303,0.0151,25945.0,25944.0,1.32670035]
[1693807594501,0.0151,25945.0,25944.0,1.32682035]
[1693807594700,0.0151,25945.0,25944.0,1.43333034]
[1693807595135,0.0151,25945.0,25944.0,1.07685788]
[1693807595253,0.0151,25945.0,25944.0,1.14183788]
[1693807595453,0.0151,25945.0,25944.0,1.32669357]
[1693807595787,0.0151,25945.0,25944.0,1.52860169]
[1693807596094,0.0151,25945.0,25944.0,1.32723357]
[1693807596303,0.0151,25945.0,25944.0,1.32765357]
[1693807596630,0.0151,25945.0,25944.0,1.51051939]
[1693807596860,0.0151,25945.0,25944.0,1.51045939]
[1693807597047,0.0151,25945.0,25944.0,1.51039939]
[1693807597250,0.0151,25945.0,25944.0,1.51033939]
[1693807597541,0.0151,25945.0,25944.0,1.51021939]
[1693807597811,0.0151,25945.0,25944.0,1.51015939]
[1693807598037,0.0151,25945.0,25944.0,1.51009939]
[1693807598198,0.0151,25945.0,25944.0,1.3279437]
[1693807598375,0.0151,25945.0,25944.0,1.3277637]
[1693807598580,0.0151,25945.0,25944.0,1.3278837]
[1693807598916,0.0151,25945.0,25944.0,1.2602637]
[1693807599086,0.0151,25945.0,25944.0,1.33420711]
[1693807599260,0.0151,25945.0,25944.0,1.26664711]
[1693807600067,0.0151,25945.0,25944.0,1.33150711]
[1693807600310,0.0151,25945.0,25944.0,1.33138711]
[1693807600499,0.0151,25945.0,25944.0,1.26664711]
[1693807600700,0.0151,25945.0,25944.0,1.14375788]
[1693807600938,0.0151,25945.0,25944.0,1.14837788]
[1693807601094,0.0151,25945.0,25944.0,1.36464929]
[1693807601293,0.0151,25945.0,25944.0,1.36458929]
[1693807601501,0.0151,25945.0,25944.0,1.14795788]
[1693807601820,0.0151,25945.0,25944.0,1.32302868]
[1693807602001,0.0151,25945.0,25944.0,1.32296868]
[1693807602202,0.0151,25945.0,25944.0,1.32284868]
[1693807602397,0.001,25945.0,25944.0,1.2889538]
[1693807602599,0.001,25945.0,25944.0,1.11425572]
[1693807602810,0.001,25945.0,25944.0,1.03925572]
[1693807603016,0.001,25945.0,25944.0,1.03547572]
[1693807603296,0.001,25945.0,25944.0,1.02347572]
[1693807603494,0.0141,25946.0,25945.0,0.02]
[1693807603702,0.0141,25946.0,25945.0,0.85886697]
[1693807603899,0.0141,25946.0,25945.0,1.23122697]
[1693807604142,0.0141,25946.0,25945.0,1.23128697]
[1693807604478,0.0141,25946.0,25945.0,1.23788697]
[1693807604597,0.0141,25946.0,25945.0,1.23776697]
[1693807604967,0.0141,25946.0,25945.0,1.39184697]
[1693807605178,0.0141,25946.0,25945.0,1.60625817]
[1693807605384,0.0141,25946.0,25945.0,1.60589817]
[1693807605608,0.0141,25946.0,25945.0,1.63059817]
[1693807605745,0.0141,25946.0,25945.0,1.63101817]
[1693807606114,0.0141,25946.0,25945.0,1.44304697]
[1693807606319,0.0141,25946.0,25945.0,1.44718697]
[1693807606472,0.0141,25946.0,25945.0,1.44484697]
[1693807606675,0.0141,25946.0,25945.0,1.44634697]
[1693807606882,0.0141,25946.0,25945.0,1.44676697]
[1693807607311,0.0141,25946.0,25945.0,1.63149695]
[1693807607512,0.0141,25946.0,25945.0,1.86420283]
[1693807607867,0.0141,25946.0,25945.0,1.86318283]
[1693807608067,0.0141,25946.0,25945.0,1.86108283]
[1693807608226,0.0141,25946.0,25945.0,1.67653285]
[1693807608422,0.0141,25946.0,25945.0,1.67659285]
[1693807608623,0.0141,25946.0,25945.0,1.67653285]
[1693807608822,0.0141,25946.0,25945.0,1.67659285]
[1693807609049,0.0141,25946.0,25945.0,1.67677285]
[1693807609246,0.0141,25946.0,25945.0,1.67695285]
[1693807609452,0.0141,25946.0,25945.0,1.44682697]
[1693807609659,0.0141,25946.0,25945.0,1.44766697]
[1693807609857,0.0141,25946.0,25945.0,1.44838697]
[1693807610031,0.0141,25946.0,25945.0,1.48868697]
[1693807610215,0.0141,25946.0,25945.0,1.49164014]
[1693807610479,0.0141,25946.0,25945.0,1.49116014]
[1693807610662,0.0141,25946.0,25945.0,1.71156729]
[1693807610892,0.0141,25946.0,25945.0,1.71132729]
[1693807611132,0.0141,25946.0,25945.0,1.48942014]
[1693807611334,0.0141,25946.0,25945.0,1.48960014]
[1693807611538,0.0141,25946.0,25945.0,1.48984014]
[1693807611754,0.0141,25946.0,25945.0,1.48972014]
[1693807611958,0.0141,25946.0,25945.0,1.48924014]
[1693807612170,0.0141,25946.0,25945.0,1.48912014]
[1693807612374,0.0141,25946.0,25945.0,1.70622122]
[1693807612733,0.0141,25946.0,25945.0,1.70838122]
[1693807612960,0.0141,25946.0,25945.0,1.71118685]
[1693807613092,0.0141,25946.0,25945.0,1.71112685]
[1693807613292,0.0141,25946.0,25945.0,1.71130685]
[1693807613494,0.0141,25946.0,25945.0,1.71094685]
[1693807613702,0.0141,25946.0,25945.0,1.71058685]
[1693807613922,0.0141,25946.0,25945.0,1.71076685]
[1693807614274,0.0141,25946.0,25945.0,1.71016685]
[1693807614425,0.0141,25946.0,25945.0,1.70230685]
[1693807614628,0.0141,25946.0,25945.0,1.70224685]
[1693807614855,0.0141,25946.0,25945.0,1.70182685]
[1693807615029,0.0141,25946.0,25945.0,1.70026685]
[1693807615230,0.0141,25946.0,25945.0,1.70020685]
[1693807615439,0.0141,25946.0,25945.0,1.69900685]
[1693807615663,0.0141,25946.0,25945.0,1.69918685]
[1693807615898,0.0141,25946.0,25945.0,1.65690685]
[1693807616227,0.0141,25946.0,25945.0,1.69678685]
[1693807616387,0.0141,25946.0,25945.0,1.69672685]
[1693807616560,0.0141,25946.0,25945.0,1.69684685]
[1693807616761,0.0141,25946.0,25945.0,1.69750685]
[1693807617013,0.0141,25946.0,25945.0,1.62724685]
[1693807618629,0.0141,25946.0,25945.0,1.58724685]
[1693807618829,0.0141,25946.0,25945.0,1.62724685]
[1693807623045,0.0141,25946.0,25945.0,1.81212597]
[1693807625390,0.0141,25946.0,25945.0,1.62724685]
[1693807626191,0.0141,25946.0,25945.0,1.69786685]
[1693807626343,0.0141,25946.0,25945.0,1.69228685]
[1693807626544,0.0141,25946.0,25945.0,1.69198685]
[1693807626747,0.0141,25946.0,25945.0,1.69282685]
[1693807626979,0.0141,25946.0,25945.0,1.69294685]
[1693807627186,0.0141,25946.0,25945.0,1.69306685]
[1693807627378,0.0141,25946.0,25945.0,1.69288685]
[1693807627695,0.0141,25946.0,25945.0,1.69294685]
[1693807628032,0.0141,25946.0,25945.0,1.69324685]
[1693807628232,0.0141,25946.0,25945.0,1.69330685]
[1693807628444,0.0141,25946.0,25945.0,1.69324685]
[1693807628604,0.0141,25946.0,25945.0,1.69348685]
[1693807628805,0.0141,25946.0,25945.0,1.69354685]
[1693807629033,0.0141,25946.0,25945.0,1.69366685]
[1693807629240,0.0141,25946.0,25945.0,1.69372685]
[1693807629401,0.0141,25946.0,25945.0,1.69414685]
[1693807629621,0.0141,25946.0,25945.0,1.69456685]
[1693807629820,0.0141,25946.0,25945.0,1.69516685]
[1693807630027,0.0141,25946.0,25945.0,1.69480685]
[1693807630223,0.0141,25946.0,25945.0,1.69456685]
[1693807630426,0.0141,25946.0,25945.0,1.69510685]
[1693807630658,0.0141,25946.0,25945.0,1.69474685]
[1693807630852,0.0141,25946.0,25945.0,1.69504685]
[1693807631077,0.0141,25946.0,25945.0,1.69546685]
[1693807631250,0.0141,25946.0,25945.0,1.69576685]
[1693807631450,0.0141,25946.0,25945.0,1.70068685]
[1693807631654,0.0141,25946.0,25945.0,1.70002685]
[1693807631893,0.0141,25946.0,25945.0,1.89289685]
[1693807632057,0.0141,25946.0,25945.0,1.70026685]
[1693807632256,0.0141,25946.0,25945.0,1.70110685]
[1693807632617,0.0141,25946.0,25945.0,1.70158685]
[1693807632929,0.0141,25946.0,25945.0,1.70164685]
[1693807633277,0.0141,25946.0,25945.0,1.70170685]
[1693807633486,0.0141,25946.0,25945.0,1.70128685]
[1693807633681,0.0141,25946.0,25945.0,1.70236685]
[1693807633886,0.0141,25946.0,25945.0,1.70548685]
[1693807634091,0.0141,25946.0,25945.0,1.70266685]
[1693807634408,0.0141,25946.0,25945.0,1.70272685]
[1693807634628,0.0141,25946.0,25945.0,1.70446685]
[1693807634850,0.0141,25946.0,25945.0,1.70170685]
[1693807635057,0.0141,25946.0,25945.0,1.70188685]
[1693807635231,0.0141,25946.0,25945.0,1.70194685]
[1693807635439,0.0141,25946.0,25945.0,1.70158685]
[1693807635634,0.0141,25946.0,25945.0,1.70206685]
[1693807635892,0.0141,25946.0,25945.0,1.70182685]
[1693807636050,0.0141,25946.0,25945.0,1.70176685]
[1693807636246,0.0141,25946.0,25945.0,1.70146685]
[1693807636949,0.0141,25946.0,25945.0,1.70074685]
[1693807637132,0.0141,25946.0,25945.0,1.70044685]
[1693807637283,0.0141,25946.0,25945.0,1.70086685]
[1693807637494,0.0141,25946.0,25945.0,1.70170685]
[1693807637896,0.0141,25946.0,25945.0,1.70440685]
[1693807638255,0.0141,25946.0,25945.0,1.70404685]
[1693807638432,0.0141,25946.0,25945.0,1.70398685]
[1693807638645,0.0141,25946.0,25945.0,1.70356685]
[1693807638812,0.0141,25946.0,25945.0,1.70362685]
[1693807639013,0.0141,25946.0,25945.0,1.70374685]
[1693807639445,0.0141,25946.0,25945.0,1.70380685]
[1693807639648,0.0141,25946.0,25945.0,1.70362685]
[1693807639817,0.0141,25946.0,25945.0,1.70368685]
[1693807640018,0.0141,25946.0,25945.0,1.48330014]
[1693807640218,0.0141,25946.0,25945.0,1.25228926]
[1693807640441,0.0141,25946.0,25945.0,1.48212347]
[1693807640642,0.0141,25946.0,25945.0,1.48194347]
[1693807640874,0.0141,25946.0,25945.0,1.48176347]
[1693807641091,0.0141,25946.0,25945.0,1.48230347]
[1693807641301,0.0141,25946.0,25945.0,1.47762347]
[1693807641501,0.0141,25946.0,25945.0,1.47126347]
[1693807641799,0.0141,25946.0,25945.0,1.47402347]
[1693807642022,0.0141,25946.0,25945.0,1.47450347]
[1693807642222,0.0141,25946.0,25945.0,1.47462347]
[1693807642423,0.0141,25946.0,25945.0,1.47468347]
[1693807642728,0.0141,25946.0,25945.0,1.47510347]
[1693807642955,0.0141,25946.0,25945.0,1.47498347]
[1693807643133,0.0141,25946.0,25945.0,1.47510347]
[1693807643411,0.0141,25946.0,25945.0,1.47522347]
[1693807643826,0.0141,25946.0,25945.0,1.48116347]
[1693807644004,0.0141,25946.0,25945.0,1.71087624]
[1693807644306,0.0141,25946.0,25945.0,1.71099624]
[1693807644521,0.0141,25946.0,25945.0,1.47984347]
[1693807644715,0.0141,25946.0,25945.0,1.47936347]
[1693807644913,0.0141,25946.0,25945.0,1.48008347]
[1693807645140,0.0141,25946.0,25945.0,1.48092347]
[1693807645342,0.0141,25946.0,25945.0,1.48164347]
[1693807645473,0.0141,25946.0,25945.0,1.48176347]
[1693807645841,0.0141,25946.0,25945.0,1.25912926]
[1693807646044,0.0141,25946.0,25945.0,1.25888926]
[1693807646262,0.0141,25946.0,25945.0,1.25876926]
[1693807646436,0.0141,25946.0,25945.0,1.25888926]
[1693807646646,0.0141,25946.0,25945.0,1.25762926]
[1693807646856,0.0141,25946.0,25945.0,1.31448518]
[1693807647600,0.0141,25946.0,25945.0,1.31442518]
[1693807647814,0.0141,25946.0,25945.0,1.31436518]
[1693807648264,0.0141,25946.0,25945.0,1.31430518]
[1693807648522,0.0141,25946.0,25945.0,1.31544518]
[1693807648876,0.0141,25946.0,25945.0,1.31538518]
[1693807649106,0.0141,25946.0,25945.0,1.31436518]
[1693807649307,0.0141,25946.0,25945.0,1.31406518]
[1693807649461,0.0141,25946.0,25945.0,1.31394518]
[1693807649821,0.0141,25946.0,25945.0,1.31418518]
[1693807650244,0.0141,25946.0,25945.0,1.31412518]
[1693807650410,0.0141,25946.0,25945.0,1.50948583]
[1693807650624,0.0141,25946.0,25945.0,1.70373583]
[1693807650827,0.0141,25946.0,25945.0,1.70355583]
[1693807651030,0.0198,25948.0,25947.0,0.08]
[1693807651234,0.2642,25952.0,25951.0,0.06]
[1693807651438,0.0141,25952.0,25951.0,1.11804812]
[1693807651778,0.0141,25952.0,25951.0,1.26557162]
[1693807651957,0.0141,25952.0,25951.0,1.31177971]
[1693807652170,0.0141,25952.0,25951.0,1.47192733]
[1693807652370,0.0141,25952.0,25951.0,1.26549949]
[1693807652575,0.0141,25952.0,25951.0,1.35615949]
[1693807652778,0.0141,25952.0,25951.0,1.62639431]
[1693807652977,0.0141,25952.0,25951.0,1.53915431]
[1693807653583,0.0141,25952.0,25951.0,1.56415431]
[1693807653813,0.0141,25952.0,25951.0,1.5444224]
[1693807654019,0.0141,25952.0,25951.0,1.5694224]
[1693807654224,0.0141,25952.0,25951.0,1.72787744]
[1693807654403,0.0141,25952.0,25951.0,1.77382744]
[1693807654555,0.0141,25952.0,25951.0,1.77340744]
[1693807654766,0.0141,25952.0,25951.0,1.77466744]
[1693807654965,0.0141,25952.0,25951.0,1.78006744]
[1693807655172,0.0141,25952.0,25951.0,1.40559239]
[1693807655373,0.0141,25952.0,25951.0,1.40745239]
[1693807655942,0.0141,25952.0,25951.0,1.40637239]
[1693807656146,0.0141,25952.0,25951.0,1.57577145]
[1693807656332,0.0141,25952.0,25951.0,1.5928026]
[1693807656483,0.0141,25952.0,25951.0,1.5923226]
[1693807656691,0.4165,25954.0,25952.0,0.04026809]
[1693807656902,0.2642,25954.0,25953.0,0.47015487]
[1693807657098,0.0141,25954.0,25953.0,0.84983487]
[1693807657344,0.0141,25954.0,25953.0,0.84917487]
[1693807657677,0.0141,25954.0,25953.0,0.84995487]
[1693807657854,0.0141,25954.0,25953.0,1.05247512]
[1693807658061,0.0141,25954.0,25953.0,1.22725512]
[1693807658409,0.0141,25954.0,25953.0,1.22761512]
[1693807658650,0.0141,25954.0,25953.0,1.22641512]
[1693807658861,0.0141,25954.0,25953.0,1.22683512]
[1693807659064,0.0141,25954.0,25953.0,1.22665512]
[1693807659265,0.0141,25954.0,25953.0,1.41852512]
[1693807659460,0.0141,25954.0,25953.0,1.43590512]
[1693807659667,0.0141,25954.0,25953.0,1.36954512]
[1693807661099,0.0141,25954.0,25953.0,1.43668512]
[1693807661333,0.0141,25954.0,25953.0,1.44004512]
[1693807661471,0.0141,25954.0,25953.0,1.43992512]
[1693807661691,0.0141,25954.0,25953.0,1.43932512]
[1693807662023,0.0141,25954.0,25953.0,1.44130512]
[1693807662232,0.0141,25954.0,25953.0,1.44040512]
[1693807662431,0.0141,25954.0,25953.0,1.44004512]
[1693807662662,0.0141,25954.0,25953.0,1.43968512]
[1693807662873,0.0141,25954.0,25953.0,1.44052512]
[1693807663085,0.0141,25954.0,25953.0,1.44130512]
[1693807663235,0.0141,25954.0,25953.0,1.44238512]
[1693807663441,0.0141,25954.0,25953.0,1.44310512]
[1693807663651,0.0141,25954.0,25953.0,1.43944512]
[1693807663854,0.0141,25954.0,25953.0,1.44100512]
[1693807664031,0.0141,25954.0,25953.0,1.43848512]
[1693807664237,0.0141,25954.0,25953.0,1.43812512]
[1693807664437,0.0141,25954.0,25953.0,1.43902512]
[1693807664637,0.0141,25954.0,25953.0,1.43890512]
[1693807664877,0.0141,25954.0,25953.0,1.44142512]
[1693807665110,0.0141,25954.0,25953.0,1.24142487]
[1693807665323,0.0141,25954.0,25953.0,1.46007119]
[1693807665524,0.0141,25954.0,25953.0,1.45875119]
[1693807665723,0.0141,25954.0,25953.0,1.45863119]
[1693807665904,0.0141,25954.0,25953.0,1.45965119]
[1693807666106,0.0141,25954.0,25953.0,1.45947119]
[1693807666305,0.0141,25954.0,25953.0,1.45959119]
[1693807666515,0.0141,25954.0,25953.0,1.45851119]
[1693807666716,0.0141,25954.0,25953.0,1.45875119]
[1693807666923,0.0141,25954.0,25953.0,1.24010487]
[1693807667269,0.0141,25954.0,25953.0,1.44452223]
[1693807667445,0.0141,25954.0,25953.0,1.24124487]
[1693807667650,0.0141,25954.0,25953.0,1.24148487]
[1693807667800,0.0141,25954.0,25953.0,1.24130487]
[1693807668214,0.0141,25954.0,25953.0,1.24268487]
[1693807668440,0.0141,25954.0,25953.0,1.24250487]
[1693807668589,0.0141,25954.0,25953.0,1.24268487]
[1693807668792,0.0141,25954.0,25953.0,1.43675872]
[1693807668997,0.0141,25954.0,25953.0,1.43147872]
[1693807669204,0.0141,25954.0,25953.0,1.43141872]
[1693807669459,0.0141,25954.0,25953.0,1.43129872]
[1693807669631,0.0141,25954.0,25953.0,1.23852872]
[1693807669831,0.0141,25954.0,25953.0,1.23840872]
[1693807670051,0.0141,25954.0,25953.0,1.23828872]
[1693807670230,0.0141,25954.0,25953.0,1.23768872]
[1693807670443,0.0141,25954.0,25953.0,1.23756872]
[1693807670643,0.0141,25954.0,25953.0,1.23708872]
[1693807670850,0.0141,25954.0,25953.0,1.23996872]
[1693807671049,0.0141,25954.0,25953.0,1.23984872]
[1693807671257,0.0141,25954.0,25953.0,1.23978872]
[1693807671464,0.0141,25954.0,25953.0,1.23960872]
[1693807671637,0.0141,25954.0,25953.0,1.23942872]
[1693807671842,0.0141,25954.0,25953.0,1.23924872]
[1693807672046,0.0141,25954.0,25953.0,1.23918872]
[1693807672292,0.0141,25954.0,25953.0,1.23912872]
[1693807672502,0.0141,25954.0,25953.0,1.23906872]
[1693807672704,0.0141,25954.0,25953.0,1.23894872]
[1693807672923,0.0141,25954.0,25953.0,1.23882872]
[1693807673129,0.0141,25954.0,25953.0,1.23924872]
[1693807673329,0.0141,25954.0,25953.0,1.23888872]
[1693807673530,0.0141,25954.0,25953.0,1.23852872]
[1693807673787,0.0141,25954.0,25953.0,1.23846872]
[1693807674006,0.0141,25954.0,25953.0,1.23828872]
[1693807674215,0.0141,25954.0,25953.0,1.23822872]
[1693807674416,0.0141,25954.0,25953.0,1.23798872]
[1693807674626,0.0141,25954.0,25953.0,1.23708872]
[1693807674839,0.0141,25954.0,25953.0,1.23702872]
[1693807675050,0.13812329,25966.0,25965.0,0.04026809]
[1693807675262,0.15792329,25968.0,25967.0,0.06026809]
[1693807675487,0.0198,25968.0,25967.0,1.50218958]
[1693807675701,0.0198,25971.0,25970.0,0.04026809]
[1693807675913,0.0198,25971.0,25970.0,0.77470958]
[1693807676119,0.0198,25971.0,25970.0,2.37936158]
[1693807676330,0.0198,25971.0,25970.0,2.22452687]
[1693807676554,0.4054,25975.0,25972.0,0.0792]
[1693807676767,0.4054,25975.0,25973.0,1.49643878]
[1693807676980,0.4054,25975.0,25973.0,1.79643878]
[1693807678176,0.4054,25975.0,25973.0,1.409352]
[1693807678602,0.4054,25975.0,25973.0,1.492152]
[1693807679064,0.4054,25975.0,25973.0,1.512152]
[1693807679469,0.4054,25975.0,25973.0,1.50874861]
[1693807680081,0.4054,25975.0,25973.0,1.66274961]
[1693807680691,0.04545025,25974.0,25973.0,1.66274961]
[1693807682541,0.0198,25974.0,25973.0,1.66274961]
[1693807685838,0.0198,25974.0,25973.0,2.16183639]
[1693807687333,0.0198,25974.0,25973.0,2.14483639]
[1693807687548,0.0198,25974.0,25973.0,2.19483639]
[1693807688020,0.0198,25974.0,25973.0,2.14983639]
[1693807688423,0.0198,25974.0,25973.0,2.17483639]
[1693807689869,0.0198,25974.0,25973.0,2.06283639]
[1693807691452,0.2098,25974.0,25973.0,2.06283639]
[1693807700673,0.2363588,25974.0,25973.0,2.06283639]
[1693807706587,0.2098,25974.0,25973.0,2.06283639]
[1693807710695,0.2098,25974.0,25973.0,1.67574961]
[1693807713190,0.4457303,25974.0,25973.0,1.59294961]
[1693807713390,0.4722891,25974.0,25973.0,1.59294961]
[1693807714602,0.33889071,25974.0,25973.0,1.29294961]
[1693807714803,0.39889071,25974.0,25973.0,1.29294961]
[1693807715002,0.41889071,25974.0,25973.0,0.204001]
[1693807715470,0.69381581,25974.0,25973.0,0.179001]
[1693807715669,0.41889071,25974.0,25973.0,0.204001]
[1693807715817,0.41889071,25974.0,25973.0,0.179001]
[1693807716224,0.70826501,25974.0,25973.0,0.154001]
[1693807716427,0.71026501,25974.0,25973.0,0.156001]
[1693807717430,0.42089071,25974.0,25973.0,0.156001]
[1693807717809,0.42289071,25974.0,25973.0,0.158001]
[1693807718858,0.65734931,25974.0,25973.0,0.158001]
[1693807719033,0.65734931,25974.0,25973.0,0.004]
[1693807727817,0.86997749,25974.0,25973.0,0.004]
[1693807728655,0.88997749,25974.0,25973.0,0.004]
[1693807728868,0.88797749,25974.0,25973.0,0.002]
[1693807729067,0.90997749,25974.0,25973.0,0.004]
[1693807729460,0.88797749,25974.0,25973.0,0.002]
[1693807729886,0.90997749,25974.0,25973.0,0.004]
[1693807730085,0.90797749,25974.0,25973.0,0.002]
[1693807730228,0.93297749,25974.0,25973.0,0.004]
[1693807731094,1.06781545,25974.0,25973.0,0.15883471]
[1693807731302,1.06781545,25974.0,25973.0,0.004]
[1693807732854,1.15061545,25974.0,25973.0,0.004]
[1693807739375,0.54072867,25974.0,25973.0,0.004]
[1693807739585,0.32309071,25974.0,25973.0,0.004]
[1693807739806,0.38309071,25974.0,25973.0,0.004]
[1693807739996,0.40309071,25974.0,25973.0,0.004]
[1693807742001,0.66424327,25974.0,25973.0,0.004]
[1693807742207,0.40309071,25974.0,25973.0,0.004]
[1693807742407,0.66137254,25974.0,25973.0,0.004]
[1693807753019,0.74417254,25974.0,25973.0,0.004]
[1693807756494,0.87297749,25974.0,25973.0,0.004]
[1693807758582,0.93297749,25974.0,25973.0,0.004]
[1693807758798,1.00089749,25974.0,25973.0,0.004]
[1693807759011,1.88453827,25974.0,25973.0,0.004]
[1693807759223,1.91479435,25974.0,25973.0,0.004]
[1693807759435,1.91491435,25974.0,25973.0,0.004]
[1693807759637,0.01973191,25965.0,25964.0,0.09233211]
[1693807760224,0.01973191,25965.0,25964.0,0.23083028]
[1693807760433,0.04668504,25965.0,25964.0,0.09233211]
[1693807761411,0.04768504,25965.0,25964.0,0.09533211]
[1693807762400,0.04768504,25965.0,25964.0,0.005]
[1693807766645,0.23768504,25965.0,25964.0,0.005]
[1693807786123,0.23768504,25965.0,25964.0,0.18013211]
[1693807794389,0.23768504,25965.0,25964.0,0.09733211]
[1693807795035,0.23768504,25965.0,25964.0,0.005]
[1693807796758,0.23768504,25965.0,25964.0,0.09733211]
[1693807800019,0.23768504,25965.0,25964.0,0.005]
[1693807800020,0.53127758,25965.0,25964.0,0.005]
[1693807800767,0.53127758,25965.0,25964.0,0.09733211]
[1693807801174,0.53127758,25965.0,25964.0,0.09732307]